bitfinex/quotes_BTCUSD_20241013
["timestamp","ask_amount","ask_price","bid_price","bid_amount"]
[1728807752171,0.0093787,63052.0,63051.0,0.0438]
[1728807752846,0.0093787,63052.0,63051.0,0.202401]
[1728807753927,0.0093787,63052.0,63051.0,0.0438]
[1728807754356,0.0093787,63052.0,63051.0,0.04876634]
[1728807756572,0.0093787,63052.0,63051.0,0.0438]
[1728807756786,0.0093787,63052.0,63051.0,0.04876634]
[1728807758723,0.0093787,63052.0,63051.0,0.20736734]
[1728807759384,0.0093787,63052.0,63051.0,0.04876634]
[1728807759815,0.0828,63053.0,63051.0,0.04876634]
[1728807760031,0.0828,63053.0,63052.0,0.00496634]
[1728807761795,0.0828,63053.0,63052.0,0.01496634]
[1728807762016,0.08362,63053.0,63052.0,0.01496634]
[1728807762460,0.09298613,63053.0,63052.0,0.01496634]
[1728807767551,0.09298613,63053.0,63052.0,0.01496633]
[1728807773362,0.14049286,63053.0,63052.0,0.01496633]
[1728807774299,0.29908886,63053.0,63052.0,0.01496633]
[1728807774994,0.29908886,63053.0,63052.0,0.01496657]
[1728807775449,0.25158213,63053.0,63052.0,0.01496657]
[1728807777354,0.32284222,63053.0,63052.0,0.01496657]
[1728807778290,0.61465506,63053.0,63052.0,0.01]
[1728807778532,0.6386914,63053.0,63052.0,0.01]
[1728807778755,0.63120325,63053.0,63052.0,0.01]
[1728807778986,0.63120325,63053.0,63052.0,0.005]
[1728807779228,1.03120325,63053.0,63052.0,0.005]
[1728807779448,1.03120325,63053.0,63052.0,0.009]
[1728807779946,1.03120325,63053.0,63052.0,0.005]
[1728807780184,1.02470325,63053.0,63052.0,0.001]
[1728807780417,1.02470325,63053.0,63052.0,0.005]
[1728807780637,1.02470325,63053.0,63046.0,0.0318]
[1728807780638,0.158611,63048.0,63046.0,0.0318]
[1728807780873,0.25387886,63048.0,63046.0,0.0318]
[1728807781111,0.00935137,63047.0,63046.0,0.0318]
[1728807781341,0.23940385,63047.0,63046.0,0.0318]
[1728807781576,0.23940385,63047.0,63043.0,0.03344]
[1728807781801,0.23940385,63047.0,63044.0,0.03676702]
[1728807781802,0.04762948,63045.0,63044.0,0.03676702]
[1728807782264,0.00934808,63045.0,63044.0,0.03676702]
[1728807783214,0.24426408,63045.0,63044.0,0.03676702]
[1728807783476,0.29189356,63045.0,63044.0,0.03676702]
[1728807783712,0.29188431,63045.0,63044.0,0.04376702]
[1728807784178,0.08564808,63045.0,63044.0,0.04376702]
[1728807784419,0.13326831,63045.0,63044.0,0.0458]
[1728807784670,0.13326831,63045.0,63044.0,0.04376704]
[1728807784671,0.08564808,63045.0,63044.0,0.04376704]
[1728807784937,0.13326831,63045.0,63044.0,0.0448]
[1728807785182,0.29188431,63045.0,63044.0,0.0318]
[1728807785412,0.29188431,63045.0,63044.0,0.0378]
[1728807785865,0.29188431,63045.0,63043.0,0.00164]
[1728807786336,0.24426408,63045.0,63044.0,0.005]
[1728807787035,0.24426408,63045.0,63043.0,0.00164]
[1728807787323,0.16796408,63045.0,63043.0,0.03844]
[1728807787788,0.16796408,63045.0,63044.0,0.005]
[1728807788032,0.16796408,63045.0,63043.0,0.03844]
[1728807788505,0.16796408,63045.0,63043.0,0.04344]
[1728807789421,0.16796408,63045.0,63043.0,0.03844]
[1728807789650,0.16796408,63045.0,63044.0,0.005]
[1728807790109,0.16796408,63045.0,63044.0,0.01]
[1728807790348,0.16796408,63045.0,63043.0,0.03344]
[1728807790581,0.16796408,63045.0,63043.0,0.03844]
[1728807790811,0.16796408,63045.0,63043.0,0.04344]
[1728807791049,0.16796408,63045.0,63043.0,0.03844]
[1728807791050,0.00934808,63045.0,63043.0,0.03844]
[1728807791302,0.00934808,63045.0,63044.0,0.005]
[1728807791751,0.00934808,63045.0,63043.0,0.03844]
[1728807791975,0.00934808,63045.0,63043.0,0.03344]
[1728807792200,0.00934808,63045.0,63044.0,0.005]
[1728807792662,0.00934808,63045.0,63043.0,0.03344]
[1728807793559,0.00934808,63045.0,63043.0,0.03844]
[1728807794068,0.00934808,63045.0,63043.0,0.04344]
[1728807795655,0.158619,63044.0,63043.0,0.04344]
[1728807796091,0.16793322,63044.0,63043.0,0.04344]
[1728807796335,0.00931422,63044.0,63043.0,0.04344]
[1728807796564,0.158615,63046.0,63043.0,0.03844]
[1728807796805,0.25073322,63044.0,63043.0,0.03844]
[1728807797034,0.241419,63044.0,63043.0,0.03844]
[1728807797261,0.09211422,63044.0,63043.0,0.04344]
[1728807797493,0.25073322,63044.0,63043.0,0.04344]
[1728807797929,0.25073322,63044.0,63043.0,0.03844]
[1728807798142,0.25073322,63044.0,63043.0,0.00464]
[1728807798360,0.25073322,63044.0,63043.0,0.00764]
[1728807798806,0.25073322,63044.0,63043.0,0.01264]
[1728807799026,0.25073322,63044.0,63043.0,0.00664]
[1728807799454,0.25073322,63044.0,63043.0,0.01660707]
[1728807800330,0.49211422,63044.0,63043.0,0.01660707]
[1728807800980,0.49211422,63044.0,63043.0,0.01164]
[1728807801199,0.49211422,63044.0,63043.0,0.01660707]
[1728807806303,0.09211422,63044.0,63043.0,0.01660707]
[1728807807185,0.09211422,63044.0,63043.0,0.01164]
[1728807807402,0.09211422,63044.0,63043.0,0.01660706]
[1728807809309,0.49211422,63044.0,63043.0,0.01660706]
[1728807811192,0.65073322,63044.0,63043.0,0.01660706]
[1728807813293,0.69834272,63044.0,63043.0,0.01660706]
[1728807813545,0.76229487,63044.0,63043.0,0.01164]
[1728807813785,1.03322877,63044.0,63043.0,0.01164]
[1728807814748,1.03322877,63044.0,63043.0,0.00664]
[1728807814980,1.03322877,63044.0,63043.0,0.00164]
[1728807815225,1.03322877,63044.0,63043.0,0.00564]
[1728807815471,1.03322877,63044.0,63043.0,0.00964]
[1728807816170,1.03322877,63044.0,63043.0,0.00564]
[1728807817110,1.03322877,63044.0,63043.0,0.00164]
[1728807817333,1.03322877,63044.0,63043.0,0.00464]
[1728807817768,1.03322877,63044.0,63043.0,0.00864]
[1728807818267,1.03322877,63044.0,63043.0,0.00464]
[1728807818473,1.03322877,63044.0,63043.0,0.00164]
[1728807818696,1.03322877,63044.0,63043.0,0.00364]
[1728807818918,1.03322877,63044.0,63043.0,0.00564]
[1728807819379,0.93805858,63044.0,63043.0,0.00364]
[1728807819601,0.93805858,63044.0,63043.0,0.00564]
[1728807820246,1.03330462,63044.0,63043.0,0.00564]
[1728807820470,0.93805858,63044.0,63043.0,0.00564]
[1728807821126,0.93810545,63044.0,63043.0,0.00564]
[1728807821347,1.05717293,63044.0,63043.0,0.00564]
[1728807821833,1.20167516,63044.0,63043.0,0.00564]
[1728807822093,1.34655614,63044.0,63043.0,0.00564]
[1728807822334,1.36489917,63044.0,63043.0,0.00364]
[1728807822574,1.20352946,63044.0,63043.0,0.00464]
[1728807823072,2.76468128,63044.0,63043.0,0.00464]
[1728807823311,3.01079398,63044.0,63043.0,0.00464]
[1728807823536,3.01079398,63044.0,63043.0,0.00264]
[1728807823759,3.17416369,63044.0,63043.0,0.00264]
[1728807824198,3.01147814,63044.0,63043.0,0.00264]
[1728807824414,3.01347814,63044.0,63043.0,0.00264]
[1728807824650,3.01147814,63044.0,63043.0,0.00164]
[1728807824871,3.01147814,63044.0,63043.0,0.00264]
[1728807824872,3.01347814,63044.0,63043.0,0.00264]
[1728807825094,3.01547814,63044.0,63043.0,0.00364]
[1728807825313,3.01347814,63044.0,63043.0,0.00264]
[1728807825528,2.90391649,63044.0,63043.0,0.00364]
[1728807825750,2.9035022,63044.0,63043.0,0.00364]
[1728807827625,2.79194055,63044.0,63043.0,0.00364]
[1728807827844,2.74213249,63044.0,63043.0,0.00364]
[1728807828311,2.62857084,63044.0,63043.0,0.00364]
[1728807828618,2.24204755,63044.0,63043.0,0.00364]
[1728807828877,2.09938511,63044.0,63043.0,0.00364]
[1728807829557,2.2182546,63044.0,63043.0,0.00364]
[1728807830042,2.21094676,63044.0,63043.0,0.00364]
[1728807830505,2.21176676,63044.0,63043.0,0.00364]
[1728807831883,2.23661529,63044.0,63043.0,0.00364]
[1728807833230,2.35546764,63044.0,63043.0,0.00364]
[1728807838745,2.33061911,63044.0,63043.0,0.00364]
[1728807839829,2.33044194,63044.0,63043.0,0.00364]
[1728807840339,2.21888029,63044.0,63043.0,0.00364]
[1728807840766,2.13608029,63044.0,63043.0,0.00364]
[1728807841455,2.13408029,63044.0,63043.0,0.00264]
[1728807842323,2.13608029,63044.0,63043.0,0.00364]
[1728807842537,2.13408029,63044.0,63043.0,0.00264]
[1728807842960,2.16092854,63044.0,63043.0,0.00364]
[1728807843193,2.16093196,63044.0,63043.0,0.00364]
[1728807844265,2.1371644,63044.0,63043.0,0.00364]
[1728807845382,2.13717283,63044.0,63043.0,0.00364]
[1728807848080,2.13720914,63044.0,63043.0,0.00364]
[1728807848547,2.04211571,63044.0,63043.0,0.00364]
[1728807848778,2.01726746,63044.0,63043.0,0.00364]
[1728807850692,2.13613424,63044.0,63043.0,0.00364]
[1728807852554,2.01726746,63044.0,63043.0,0.00364]
[1728807853014,2.04211606,63044.0,63043.0,0.00364]
[1728807856193,2.15367771,63044.0,63043.0,0.00364]
[1728807857588,2.15384334,63044.0,63043.0,0.00364]
[1728807858751,2.12899474,63044.0,63043.0,0.00364]
[1728807861915,2.15384338,63044.0,63043.0,0.00364]
[1728807862387,2.29676534,63044.0,63043.0,0.00364]
[1728807863055,2.29876534,63044.0,63043.0,0.00364]
[1728807863516,2.40201541,63044.0,63043.0,0.00364]
[1728807863962,2.40001541,63044.0,63043.0,0.00364]
[1728807864996,2.48151541,63044.0,63043.0,0.00364]
[1728807865218,2.74253942,63044.0,63043.0,0.00364]
[1728807866358,2.90323526,63044.0,63043.0,0.00364]
[1728807866827,2.32068752,63044.0,63043.0,0.00364]
[1728807867082,2.90345641,63044.0,63043.0,0.00364]
[1728807867809,2.90145641,63044.0,63043.0,0.00264]
[1728807868274,2.90345641,63044.0,63043.0,0.00364]
[1728807868709,2.90145641,63044.0,63043.0,0.00264]
[1728807869154,2.91245641,63044.0,63043.0,0.00364]
[1728807869387,2.91045641,63044.0,63043.0,0.00264]
[1728807869618,2.89945641,63044.0,63043.0,0.00164]
[1728807869855,2.92045641,63044.0,63043.0,0.00264]
[1728807870589,2.91845641,63044.0,63043.0,0.00264]
[1728807870837,2.54633093,63044.0,63043.0,0.00264]
[1728807871076,2.65789258,63044.0,63043.0,0.00264]
[1728807871542,2.23588752,63044.0,63043.0,0.00264]
[1728807871773,2.63311937,63044.0,63043.0,0.00264]
[1728807874113,2.36033371,63044.0,63043.0,0.00264]
[1728807874793,2.38518273,63044.0,63043.0,0.00264]
[1728807876406,2.38524767,63044.0,63043.0,0.00264]
[1728807878770,2.36039865,63044.0,63043.0,0.00264]
[1728807881709,2.38524756,63044.0,63043.0,0.00264]
[1728807884907,2.38724756,63044.0,63043.0,0.00264]
[1728807886678,2.38524756,63044.0,63043.0,0.00264]
[1728807888011,2.38724756,63044.0,63043.0,0.00264]
[1728807890720,2.38727159,63044.0,63043.0,0.00264]
[1728807891841,2.36242268,63044.0,63043.0,0.00264]
[1728807893206,2.6850164,63044.0,63043.0,0.00264]
[1728807894817,2.87069192,63044.0,63043.0,0.00264]
[1728807895323,2.70932221,63044.0,63043.0,0.00264]
[1728807895547,2.81888386,63044.0,63043.0,0.00264]
[1728807897847,2.6580574,63044.0,63043.0,0.00264]
[1728807899637,2.6600574,63044.0,63043.0,0.00264]
[1728807900332,2.66009438,63044.0,63043.0,0.00264]
[1728807901237,2.71780353,63044.0,63043.0,0.00264]
[1728807901709,2.69295447,63044.0,63043.0,0.00264]
[1728807903805,2.69295872,63044.0,63043.0,0.00264]
[1728807904714,2.71780848,63044.0,63043.0,0.00264]
[1728807905406,2.96409959,63044.0,63043.0,0.00264]
[1728807905627,2.71781002,63044.0,63043.0,0.00264]
[1728807908572,2.71780156,63044.0,63043.0,0.00264]
[1728807911874,2.6929518,63044.0,63043.0,0.00264]
[1728807913259,2.27074803,63044.0,63043.0,0.00264]
[1728807913682,2.69293052,63044.0,63043.0,0.00264]
[1728807914610,2.71778052,63044.0,63043.0,0.00264]
[1728807915545,2.81478052,63044.0,63043.0,0.00264]
[1728807918552,2.92628716,63044.0,63043.0,0.00264]
[1728807918791,2.81472551,63044.0,63043.0,0.00264]
[1728807919023,2.78987551,63044.0,63043.0,0.00264]
[1728807919269,2.78984918,63044.0,63043.0,0.00264]
[1728807920194,2.90141083,63044.0,63043.0,0.00264]
[1728807921134,3.15141083,63044.0,63043.0,0.00264]
[1728807922039,2.81469986,63044.0,63043.0,0.00264]
[1728807922264,2.92626151,63044.0,63043.0,0.00264]
[1728807923135,3.17618025,63044.0,63043.0,0.00264]
[1728807924041,2.92618025,63044.0,63043.0,0.00264]
[1728807925242,0.3887573,63038.0,63037.0,0.23854393]
[1728807925463,0.73501561,63038.0,63037.0,0.23854393]
[1728807925896,0.165639,63036.0,63035.0,0.00197]
[1728807926151,0.34148062,63036.0,63035.0,0.00197]
[1728807926382,0.3506733,63036.0,63035.0,0.00197]
[1728807926624,0.37552473,63036.0,63035.0,0.00197]
[1728807927327,0.77552473,63036.0,63035.0,0.00197]
[1728807927550,0.163647,63033.0,63032.0,0.00407]
[1728807927797,0.27520865,63033.0,63032.0,0.00407]
[1728807928035,0.46022099,63033.0,63032.0,0.00407]
[1728807928270,0.86022099,63033.0,63032.0,0.00407]
[1728807929922,0.86022099,63033.0,63032.0,0.00186]
[1728807930804,0.86222099,63033.0,63032.0,0.00186]
[1728807931021,0.86122099,63033.0,63032.0,0.00186]
[1728807931297,2.12622099,63033.0,63032.0,0.00186]
[1728807932169,2.12522099,63033.0,63032.0,0.00186]
[1728807932397,0.158654,63030.0,63029.0,0.0992]
[1728807932690,0.27021565,63030.0,63029.0,0.0992]
[1728807932910,0.44606091,63030.0,63029.0,0.0992]
[1728807933138,0.48009894,63030.0,63029.0,0.0992]
[1728807933361,0.88009894,63030.0,63029.0,0.0992]
[1728807933811,0.88009894,63030.0,63029.0,0.1032]
[1728807934034,0.88009894,63030.0,63029.0,0.10484]
[1728807934721,0.88009894,63030.0,63029.0,0.11084]
[1728807935182,0.88009894,63030.0,63029.0,0.10884]
[1728807935626,0.88009894,63030.0,63029.0,0.10984]
[1728807936065,0.88009894,63030.0,63029.0,0.10884]
[1728807936293,0.88009894,63030.0,63029.0,0.10784]
[1728807936574,0.88009894,63030.0,63029.0,0.10884]
[1728807937025,0.88009894,63030.0,63029.0,0.10784]
[1728807937241,0.88009894,63030.0,63029.0,0.10884]
[1728807937469,0.88011418,63030.0,63029.0,0.10884]
[1728807938606,0.85526254,63030.0,63029.0,0.10884]
[1728807941697,0.88011429,63030.0,63029.0,0.10884]
[1728807942557,0.88211429,63030.0,63029.0,0.10884]
[1728807942757,0.88011429,63030.0,63029.0,0.10884]
[1728807946775,0.76855264,63030.0,63029.0,0.10884]
[1728807947036,0.88011429,63030.0,63029.0,0.10884]
[1728807947243,0.88015173,63030.0,63029.0,0.10884]
[1728807948775,0.85529998,63030.0,63029.0,0.10884]
[1728807951852,0.85532614,63030.0,63029.0,0.10884]
[1728807953011,0.88017784,63030.0,63029.0,0.10884]
[1728807960773,1.02084205,63030.0,63029.0,0.10884]
[1728807961490,0.87786882,63030.0,63029.0,0.10884]
[1728807961710,0.85301712,63030.0,63029.0,0.10884]
[1728807961944,0.99599035,63030.0,63029.0,0.10884]
[1728807964590,0.99623674,63030.0,63029.0,0.10884]
[1728807965756,0.99624167,63030.0,63029.0,0.10884]
[1728807967177,0.99624313,63030.0,63029.0,0.10884]
[1728807967863,0.99624537,63030.0,63029.0,0.10884]
[1728807968586,0.99624567,63030.0,63029.0,0.10884]
[1728807969448,0.99625432,63030.0,63029.0,0.10884]
[1728807976723,0.99625432,63030.0,63029.0,0.00964]
[1728807977200,0.85316274,63030.0,63029.0,0.00964]
[1728807981864,1.39383008,63030.0,63029.0,0.00964]
[1728807982095,1.23285205,63030.0,63029.0,0.00964]
[1728807982336,1.23485205,63030.0,63029.0,0.00964]
[1728807982567,1.23485205,63030.0,63029.0,0.00864]
[1728807983040,1.01072875,63030.0,63029.0,0.00864]
[1728807983303,1.1212904,63030.0,63029.0,0.00764]
[1728807983536,1.28718604,63030.0,63029.0,0.00764]
[1728807983775,1.28709572,63030.0,63029.0,0.00764]
[1728807984025,1.39765737,63030.0,63029.0,0.00764]
[1728807984265,1.29209572,63030.0,63029.0,0.00864]
[1728807984765,1.28609572,63030.0,63029.0,0.00764]
[1728807984982,1.30694913,63030.0,63029.0,0.00764]
[1728807985216,1.31994913,63030.0,63029.0,0.00964]
[1728807985710,1.31994913,63030.0,63029.0,0.00864]
[1728807985711,1.15305359,63030.0,63029.0,0.00864]
[1728807985938,1.32094913,63030.0,63029.0,0.00964]
[1728807986158,1.16005359,63030.0,63029.0,0.00964]
[1728807988751,1.13520018,63030.0,63029.0,0.00964]
[1728807989212,1.29609572,63030.0,63029.0,0.00964]
[1728807989447,1.13520018,63030.0,63029.0,0.00964]
[1728807993071,1.15990607,63030.0,63029.0,0.00964]
[1728807993531,1.16190607,63030.0,63029.0,0.00964]
[1728807993758,1.15990607,63030.0,63029.0,0.00964]
[1728807997866,1.4059917,63030.0,63029.0,0.00964]
[1728807998122,1.15987307,63030.0,63029.0,0.00964]
[1728807998776,1.1350197,63030.0,63029.0,0.00964]
[1728807999664,1.02345805,63030.0,63029.0,0.00964]
[1728807999908,1.1350197,63030.0,63029.0,0.00964]
[1728808001810,1.15987314,63030.0,63029.0,0.00964]
[1728808002764,1.15985635,63030.0,63029.0,0.00964]
[1728808007397,1.16185635,63030.0,63029.0,0.00964]
[1728808007968,1.15985635,63030.0,63029.0,0.00964]
[1728808008406,2.42385635,63030.0,63029.0,0.00964]
[1728808008632,2.64509803,63030.0,63029.0,0.00964]
[1728808009514,2.64709803,63030.0,63029.0,0.00964]
[1728808009734,2.64509803,63030.0,63029.0,0.00964]
[1728808011901,2.66995173,63030.0,63029.0,0.00964]
[1728808012406,2.669993,63030.0,63029.0,0.00964]
[1728808013068,2.40686534,63030.0,63029.0,0.00964]
[1728808017020,2.40693462,63030.0,63029.0,0.00964]
[1728808018773,2.38208092,63030.0,63029.0,0.00964]
[1728808021711,2.40693437,63030.0,63029.0,0.00964]
[1728808023525,2.4071652,63030.0,63029.0,0.00964]
[1728808025269,2.56808914,63030.0,63029.0,0.00964]
[1728808025695,1.98494647,63030.0,63029.0,0.00964]
[1728808025900,2.56817266,63030.0,63029.0,0.00964]
[1728808027164,2.40728268,63030.0,63029.0,0.00964]
[1728808034775,2.40749731,63030.0,63029.0,0.00964]
[1728808044237,2.40750759,63030.0,63029.0,0.00964]
[1728808049050,2.40751183,63030.0,63029.0,0.00964]
[1728808054309,2.40951183,63030.0,63029.0,0.00964]
[1728808054550,2.40751183,63030.0,63029.0,0.00964]
[1728808058532,2.38265838,63030.0,63029.0,0.00964]
[1728808058756,2.38269718,63030.0,63029.0,0.00964]
[1728808063003,2.40755069,63030.0,63029.0,0.00964]
[1728808065075,2.40955069,63030.0,63029.0,0.00964]
[1728808065994,2.40755069,63030.0,63029.0,0.00964]
[1728808068301,2.40758058,63030.0,63029.0,0.00964]
[1728808068758,2.38272707,63030.0,63029.0,0.00964]
[1728808070476,2.38472707,63030.0,63029.0,0.00964]
[1728808072992,2.40958083,63030.0,63029.0,0.00964]
[1728808074400,2.64997718,63030.0,63029.0,0.00964]
[1728808075261,2.56880484,63030.0,63029.0,0.00964]
[1728808078762,2.54395108,63030.0,63029.0,0.00964]
[1728808083175,2.56880455,63030.0,63029.0,0.00964]
[1728808085917,2.1461705,63030.0,63029.0,0.00964]
[1728808086129,2.56866198,63030.0,63029.0,0.00964]
[1728808090010,2.54380851,63030.0,63029.0,0.00964]
[1728808092951,2.56866198,63030.0,63029.0,0.00964]
[1728808095548,2.56864747,63030.0,63029.0,0.00964]
[1728808098669,2.543794,63030.0,63029.0,0.00964]
[1728808100221,2.54379531,63030.0,63029.0,0.00964]
[1728808103116,2.56864879,63030.0,63029.0,0.00964]
[1728808104624,2.5686622,63030.0,63029.0,0.00964]
[1728808108575,2.54380872,63030.0,63029.0,0.00964]
[1728808112372,2.54580872,63030.0,63029.0,0.00964]
[1728808113142,2.57066228,63030.0,63029.0,0.00964]
[1728808113819,2.56866228,63030.0,63029.0,0.00964]
[1728808114892,2.57066228,63030.0,63029.0,0.00964]
[1728808115118,2.56866228,63030.0,63029.0,0.00964]
[1728808118924,2.56873655,63030.0,63029.0,0.00964]
[1728808120012,2.54388299,63030.0,63029.0,0.00964]
[1728808120638,2.62230261,63030.0,63029.0,0.00964]
[1728808121337,2.54388299,63030.0,63029.0,0.00964]
[1728808122903,2.56873671,63030.0,63029.0,0.00964]
[1728808128855,2.54388299,63030.0,63029.0,0.00964]
[1728808129082,2.54588299,63030.0,63029.0,0.00964]
[1728808129769,2.71848299,63030.0,63029.0,0.00964]
[1728808130000,2.76091248,63030.0,63029.0,0.00964]
[1728808132002,2.78576646,63030.0,63029.0,0.00964]
[1728808133392,2.78574318,63030.0,63029.0,0.00964]
[1728808137051,2.69094318,63030.0,63029.0,0.00964]
[1728808138187,2.69092771,63030.0,63029.0,0.00964]
[1728808138639,2.66607373,63030.0,63029.0,0.00964]
[1728808140259,2.55451208,63030.0,63029.0,0.00964]
[1728808140481,2.66607373,63030.0,63029.0,0.00964]
[1728808140943,2.66673845,63030.0,63029.0,0.00964]
[1728808141885,2.62430896,63030.0,63029.0,0.00964]
[1728808143074,2.64916288,63030.0,63029.0,0.00964]
[1728808146460,2.6491898,63030.0,63029.0,0.00964]
[1728808148725,2.62433588,63030.0,63029.0,0.00964]
[1728808149190,2.62433588,63030.0,63029.0,0.25964]
[1728808151874,2.64918996,63030.0,63029.0,0.25964]
[1728808152098,2.78943728,63030.0,63029.0,0.25964]
[1728808152551,2.64918996,63030.0,63029.0,0.25964]
[1728808156074,2.64920444,63030.0,63029.0,0.25964]
[1728808158773,2.62435036,63030.0,63029.0,0.25964]
[1728808160918,2.62437442,63030.0,63029.0,0.25964]
[1728808162999,2.64922827,63030.0,63029.0,0.25964]
[1728808163891,2.64922472,63030.0,63029.0,0.25964]
[1728808170101,2.62437087,63030.0,63029.0,0.25964]
[1728808173083,2.64922441,63030.0,63029.0,0.25964]
[1728808173570,2.64722441,63030.0,63029.0,0.25964]
[1728808173804,2.57142441,63030.0,63029.0,0.25964]
[1728808174036,2.56942441,63030.0,63029.0,0.25964]
[1728808174922,2.57142441,63030.0,63029.0,0.25964]
[1728808175148,2.56936328,63030.0,63029.0,0.25964]
[1728808177668,2.73029952,63030.0,63029.0,0.25964]
[1728808178357,2.56936328,63030.0,63029.0,0.25964]
[1728808178791,2.54450974,63030.0,63029.0,0.25964]
[1728808180608,2.70543174,63030.0,63029.0,0.25964]
[1728808181717,2.73028521,63030.0,63029.0,0.25964]
[1728808184818,2.73010616,63030.0,63029.0,0.25964]
[1728808188669,2.70525269,63030.0,63029.0,0.25964]
[1728808189112,2.54635036,63030.0,63029.0,0.25964]
[1728808189577,2.70724631,63030.0,63029.0,0.25964]
[1728808190277,2.54435036,63030.0,63029.0,0.25964]
[1728808190535,2.70524614,63030.0,63029.0,0.25964]
[1728808190749,2.54435036,63030.0,63029.0,0.25964]
[1728808191845,2.56920395,63030.0,63029.0,0.25964]
[1728808195283,2.73009948,63030.0,63029.0,0.25964]
[1728808195496,2.56920395,63030.0,63029.0,0.25964]
[1728808198641,2.54435036,63030.0,63029.0,0.25964]
[1728808199401,2.54435487,63030.0,63029.0,0.25964]
[1728808201922,2.56920826,63030.0,63029.0,0.25964]
[1728808202875,2.57120826,63030.0,63029.0,0.25964]
[1728808203580,2.56920826,63030.0,63029.0,0.25964]
[1728808205390,2.56220826,63030.0,63029.0,0.25864]
[1728808205649,2.56220826,63030.0,63029.0,0.25964]
[1728808205650,2.57420826,63030.0,63029.0,0.25964]
[1728808205872,2.56720826,63030.0,63029.0,0.25864]
[1728808206321,2.55525869,63030.0,63029.0,0.25764]
[1728808206550,2.56725869,63030.0,63029.0,0.25864]
[1728808206778,2.45669704,63030.0,63029.0,0.25864]
[1728808207011,2.45569704,63030.0,63029.0,0.25864]
[1728808207245,2.46769704,63030.0,63029.0,0.25964]
[1728808208620,2.44284365,63030.0,63029.0,0.25964]
[1728808211939,2.46776951,63030.0,63029.0,0.25964]
[1728808216667,2.46781007,63030.0,63029.0,0.25964]
[1728808217602,2.4721032,63030.0,63029.0,0.25964]
[1728808218602,2.4472497,63030.0,63029.0,0.25964]
[1728808220428,2.4422497,63030.0,63029.0,0.25964]
[1728808224890,2.46715104,63030.0,63029.0,0.25964]
[1728808225334,2.62852075,63030.0,63029.0,0.25964]
[1728808225777,2.46715104,63030.0,63029.0,0.25964]
[1728808225996,2.29107432,63030.0,63029.0,0.25964]
[1728808226213,2.46715184,63030.0,63029.0,0.25964]
[1728808226896,2.46915184,63030.0,63029.0,0.25964]
[1728808227564,2.46715184,63030.0,63029.0,0.25964]
[1728808228465,2.46915184,63030.0,63029.0,0.25964]
[1728808228713,2.44429816,63030.0,63029.0,0.25964]
[1728808232085,2.46715189,63030.0,63029.0,0.25964]
[1728808234744,2.46915189,63030.0,63029.0,0.25964]
[1728808238832,2.44429816,63030.0,63029.0,0.25964]
[1728808240433,2.44229816,63030.0,63029.0,0.25964]
[1728808240678,2.55385981,63030.0,63029.0,0.25964]
[1728808241788,2.57871424,63030.0,63029.0,0.25964]
[1728808248922,2.55385981,63030.0,63029.0,0.25964]
[1728808249840,2.55382862,63030.0,63029.0,0.25964]
[1728808250061,2.54182862,63030.0,63029.0,0.25864]
[1728808250304,2.54182862,63030.0,63029.0,0.25964]
[1728808250305,2.55582862,63030.0,63029.0,0.25964]
[1728808250518,2.54582862,63030.0,63029.0,0.25864]
[1728808250790,2.55982862,63030.0,63029.0,0.25864]
[1728808251241,2.54582862,63030.0,63029.0,0.25864]
[1728808251482,2.54582862,63030.0,63029.0,0.25764]
[1728808251921,2.58468313,63030.0,63029.0,0.25764]
[1728808252328,2.58268313,63030.0,63029.0,0.25764]
[1728808254356,2.58468313,63030.0,63029.0,0.25764]
[1728808256332,2.93941449,63030.0,63029.0,0.25764]
[1728808256559,2.93941449,63030.0,63029.0,0.130716]
[1728808256560,3.13741449,63030.0,63029.0,0.130716]
[1728808256782,3.2983956,63030.0,63029.0,0.130716]
[1728808257023,3.38741449,63030.0,63029.0,0.130716]
[1728808258156,3.38741449,63030.0,63029.0,0.132356]
[1728808258588,3.52346691,63030.0,63029.0,0.132356]
[1728808259889,3.36255998,63030.0,63029.0,0.068894]
[1728808260570,3.36255998,63030.0,63029.0,0.005432]
[1728808260841,0.507,63027.0,63026.0,0.00164]
[1728808261061,1.56914308,63027.0,63026.0,0.00164]
[1728808261285,1.57919564,63027.0,63026.0,0.00164]
[1728808261506,1.82568532,63027.0,63026.0,0.00164]
[1728808261728,1.85054329,63027.0,63026.0,0.00164]
[1728808262616,2.26454329,63027.0,63026.0,0.00164]
[1728808263077,2.51454329,63027.0,63026.0,0.00164]
[1728808263342,3.77854329,63027.0,63026.0,0.00164]
[1728808264259,3.77854329,63027.0,63023.0,0.00164]
[1728808264260,0.4887923,63024.0,63023.0,0.00164]
[1728808264493,1.00248037,63024.0,63023.0,0.00164]
[1728808264719,1.01251423,63024.0,63023.0,0.00164]
[1728808264947,1.12407588,63024.0,63023.0,0.00164]
[1728808265162,1.37407588,63024.0,63023.0,0.00164]
[1728808265402,1.82388394,63024.0,63023.0,0.00164]
[1728808265664,1.82388394,63024.0,63020.0,0.00164]
[1728808265665,0.165677,63021.0,63020.0,0.00164]
[1728808265921,0.87461067,63021.0,63020.0,0.00164]
[1728808266150,1.06070626,63021.0,63020.0,0.00164]
[1728808266376,1.07918961,63021.0,63020.0,0.00164]
[1728808266604,1.07894577,63021.0,63020.0,0.00164]
[1728808267067,0.90312555,63021.0,63020.0,0.00164]
[1728808267301,1.07890953,63021.0,63020.0,0.00164]
[1728808267747,1.09290953,63021.0,63020.0,0.00164]
[1728808268197,1.32890953,63021.0,63020.0,0.00164]
[1728808268451,1.72890953,63021.0,63020.0,0.00164]
[1728808268666,2.0030071,63021.0,63020.0,0.00164]
[1728808268894,1.9890071,63021.0,63020.0,0.00164]
[1728808269373,3.2670071,63021.0,63020.0,0.00164]
[1728808270519,3.42772388,63021.0,63020.0,0.00164]
[1728808271006,3.42772388,63021.0,63011.0,0.0935]
[1728808271007,0.3888123,63016.0,63011.0,0.0935]
[1728808271234,1.98982029,63016.0,63011.0,0.0935]
[1728808271448,0.158694,63014.0,63011.0,0.0935]
[1728808271670,0.49570199,63014.0,63011.0,0.0935]
[1728808271904,0.4955596,63014.0,63011.0,0.0935]
[1728808272156,1.00571587,63014.0,63011.0,0.0935]
[1728808272610,1.00771587,63014.0,63011.0,0.0935]